[Event "Slovakian ECo-C Extraliga 2024-25"]
[Site "Slovakia"]
[Date "2025.02.16"]
[Round "6.3"]
[White "Bures, Jaroslav"]
[Black "Stachowiak, Kamil"]
[Result "1-0"]
[Annotator "ChessBase"]
[ECO "B41"]
[WhiteElo "2400"]
[BlackElo "2413"]
[PlyCount "85"]
[EventDate "2024.09.12"]
[EventType "team-tourn"]
[EventCountry "SVK"]
[SourceTitle "playchess.com"]
[Source "ChessBase"]
[SourceQuality "1"]
[TimeControl "5400+30"]

1. e4 {[%emt 0:00:03]} c5 {[%emt 0:00:09]} 2. Nf3 {[%emt 0:00:04]} e6 {[%emt 0:00:10]} 3. d4 {[%emt 0:00:07]} cxd4 {[%emt 0:00:07]} 4. Nxd4 {[%emt 0:00:03]} a6 {[%emt 0:00:22]} 5. Be2 {[%emt 0:00:04]} d6 {[%emt 0:02:33]} 6. c4 {[%emt 0:01:59]} Nf6 {[%emt 0:02:11]} 7. Nc3 {[%emt 0:00:12]} Qc7 {[%emt 0:01:37]} 8. Be3 {[%emt 0:01:08]} b6 {[%emt 0:01:04]} 9. Rc1 {[%emt 0:00:26]} Bb7 {[%emt 0:01:26]} 10. f3 {[%emt 0:00:07]} Be7 {[%emt 0:00:32]} 11. Qd2 {[%emt 0:00:36]} O-O {[%emt 0:01:47]} 12. g4 {[%emt 0:03:12]} Re8 {[%emt 0:26:59]} 13. g5 {[%emt 0:00:39]} Nfd7 {[%emt 0:08:29]} 14. O-O {[%emt 0:03:31]} Bf8 {[%emt 0:01:16]} 15. f4 {[%emt 0:00:54]} Nc6 {[%emt 0:01:22]} 16. Nf3 {[%emt 0:04:26]} Rac8 {[%emt 0:04:03]} 17. Rfd1 {[%emt 0:00:03]} Nc5 {[%emt 0:02:09]} 18. Bf2 {[%emt 0:05:45]} Qb8 {[%emt 0:03:19]} 19. Rb1 {[%emt 0:13:24]} Ne7 {[%emt 0:16:16]} 20. Qxd6 {[%emt 0:03:26]} Qa8 {[%emt 0:00:56]} 21. Qxb6 {[%emt 0:02:54]} Nxe4 {[%emt 0:00:32]} 22. Ne5 {[%emt 0:02:44]} Ng6 {[%emt 0:10:20]} 23. Nxe4 {[%emt 0:05:39]} Bxe4 {[%emt 0:04:42]} 24. Nxg6 {[%emt 0:00:03]} Bxb1 {[%emt 0:05:38]} 25. Nxf8 {[%emt 0:00:03]} Bxa2 {[%emt 0:01:02]} 26. Nd7 {[%emt 0:04:15]} Bxc4 {[%emt 0:00:07]} 27. Qe3 {[%emt 0:03:13]} Bxe2 {[%emt 0:00:16]} 28. Qxe2 {[%emt 0:00:01]} Qb7 {[%emt 0:02:41]} 29. Nc5 {[%emt 0:18:10]} Qb4 {[%emt 0:00:17]} 30. Qe5 {[%emt 0:00:02]} Qb8 {[%emt 0:01:41]} 31. Rd6 {[%emt 0:08:16]} f6 {[%emt 0:00:26]} 32. gxf6 {[%emt 0:00:02]} gxf6 {[%emt 0:00:01]} 33. Qd4 {[%emt 0:00:05]} Re7 {[%emt 0:01:30]} 34. Nxe6 {[%emt 0:06:51]} Qb7 {[%emt 0:00:56]} 35. Rd8+ {[%emt 0:03:46]} Rxd8 {[%emt 0:00:19]} 36. Qxd8+ {[%emt 0:00:31]} Kf7 {[%emt 0:00:01]} 37. f5 {[%emt 0:01:25]} Re8 {[%emt 0:00:01]} 38. Qd4 {[%emt 0:04:22]} Qb5 {[%emt 0:00:51]} 39. Nc5 {[%emt 0:02:59]} Qe2 {[%emt 0:00:41]} 40. Qd7+ {[%emt 0:00:59]} Kg8 {[%emt 0:00:23]} 41. Ne6 {[%emt 0:01:09]} Qg4+ {[%emt 0:00:00]} 42. Bg3 {[%emt 0:00:00]} Ra8 {[%emt 0:00:00]} 43. Nd8 {[%emt 0:00:00]} 1-0

[Event "Slovakian ECo-C Extraliga 2024-25"]
[Site "Slovakia"]
[Date "2025.02.16"]
[Round "6.4"]
[White "Berczes, David"]
[Black "Roubalik, Jakub"]
[Result "1/2-1/2"]
[Annotator "ChessBase"]
[ECO "A06"]
[WhiteElo "2407"]
[BlackElo "2321"]
[PlyCount "60"]
[EventDate "2024.09.12"]
[EventType "team-tourn"]
[EventCountry "SVK"]
[SourceTitle "playchess.com"]
[Source "ChessBase"]
[SourceQuality "1"]
[TimeControl "5400+30"]

1. Nf3 {[%emt 0:00:13]} d5 {[%emt 0:00:18]} 2. g3 {[%emt 0:00:55]} Nf6 {[%emt 0:00:40]} 3. Bg2 {[%emt 0:00:37]} c6 {[%emt 0:01:09]} 4. O-O {[%emt 0:05:19]} Bf5 {[%emt 0:00:20]} 5. d3 {[%emt 0:06:13]} e6 {[%emt 0:02:13]} 6. Nh4 {[%emt 0:05:12]} Bg4 {[%emt 0:00:08]} 7. h3 {[%emt 0:00:16]} Bh5 {[%emt 0:00:04]} 8. Qe1 {[%emt 0:10:05]} Be7 {[%emt 0:02:03]} 9. g4 {[%emt 0:14:39]} Nfd7 {[%emt 0:02:08]} 10. gxh5 {[%emt 0:04:45]} Bxh4 {[%emt 0:00:25]} 11. Qb4 Nb6 {[%emt 0:05:55]} 12. a4 {[%emt 0:23:11]} Na6 {[%emt 0:02:08]} 13. Qg4 {[%emt 0:01:56]} Bf6 {[%emt 0:00:35]} 14. Nd2 {[%emt 0:02:29]} Qe7 {[%emt 0:12:18]} 15. e4 {[%emt 0:05:15]} Nb4 {[%emt 0:10:24]} 16. Qd1 {[%emt 0:05:16]} O-O {[%emt 0:05:55]} 17. a5 {[%emt 0:04:16]} Nd7 {[%emt 0:01:00]} 18. d4 {[%emt 0:02:32]} Rfe8 {[%emt 0:07:14]} 19. e5 {[%emt 0:01:20]} Bg5 {[%emt 0:00:59]} 20. f4 {[%emt 0:01:43]} Bh6 {[%emt 0:00:06]} 21. Nf3 {[%emt 0:00:17]} c5 {[%emt 0:00:23]} 22. c3 {[%emt 0:00:04]} Nc6 {[%emt 0:00:09]} 23. Be3 {[%emt 0:02:12]} f6 {[%emt 0:05:00]} 24. Qd2 {[%emt 0:01:12]} cxd4 {[%emt 0:06:36]} 25. cxd4 {[%emt 0:00:20]} Rac8 26. Rac1 {[%emt 0:01:22]} a6 {[%emt 0:06:20]} 27. f5 {[%emt 0:00:42]} Bxe3+ {[%emt 0:02:28]} 28. Qxe3 {[%emt 0:00:02]} fxe5 {[%emt 0:12:48]} 29. Nxe5 {[%emt 0:00:29]} Ndxe5 {[%emt 0:04:07]} 30. dxe5 {[%emt 0:00:05]} Kh8 {[%emt 0:07:00]} 1/2-1/2

[Event "Slovakian ECo-C Extraliga 2024-25"]
[Site "Slovakia"]
[Date "2025.02.16"]
[Round "6.4"]
[White "Butkiewicz, Lukasz"]
[Black "Chovan, Milan"]
[Result "1/2-1/2"]
[Annotator "ChessBase"]
[ECO "D97"]
[WhiteElo "2339"]
[BlackElo "2325"]
[PlyCount "40"]
[EventDate "2024.09.12"]
[EventType "team-tourn"]
[EventCountry "SVK"]
[SourceTitle "playchess.com"]
[Source "ChessBase"]
[SourceQuality "1"]
[TimeControl "5400+30"]

1. d4 {[%emt 0:00:03]} Nf6 {[%emt 0:00:08]} 2. c4 {[%emt 0:00:06]} g6 {[%emt 0:00:05]} 3. Nc3 {[%emt 0:00:05]} d5 {[%emt 0:00:07]} 4. Nf3 {[%emt 0:00:05]} Bg7 {[%emt 0:00:07]} 5. Qb3 {[%emt 0:00:10]} dxc4 {[%emt 0:01:13]} 6. Qxc4 {[%emt 0:00:05]} O-O {[%emt 0:00:11]} 7. e4 {[%emt 0:00:25]} a6 {[%emt 0:00:48]} 8. Be2 {[%emt 0:01:04]} b5 {[%emt 0:01:56]} 9. Qb3 {[%emt 0:00:08]} Nc6 {[%emt 0:00:22]} 10. e5 {[%emt 0:02:39]} Be6 {[%emt 0:00:27]} 11. exf6 {[%emt 0:00:54]} Bxb3 {[%emt 0:00:07]} 12. fxg7 {[%emt 0:00:03]} Kxg7 {[%emt 0:00:13]} 13. axb3 {[%emt 0:00:04]} Nxd4 {[%emt 0:00:31]} 14. Nxd4 {[%emt 0:00:19]} Qxd4 {[%emt 0:00:09]} 15. O-O {[%emt 0:00:08]} c6 {[%emt 0:04:21]} 16. Bf3 {[%emt 0:01:35]} Rfc8 {[%emt 0:00:12]} 17. Re1 {[%emt 0:02:22]} h6 {[%emt 0:00:46]} 18. Re4 {[%emt 0:17:36]} Qd3 {[%emt 0:14:38]} 19. Be3 {[%emt 0:03:22]} e5 {[%emt 0:23:44]} 20. Rxe5 {[%emt 0:23:37]} Re8 {[%emt 0:02:01]} 1/2-1/2

[Event "Slovakian ECo-C Extraliga 2024-25"]
[Site "Slovakia"]
[Date "2025.02.16"]
[Round "6.4"]
[White "Kusiak, Matej"]
[Black "Kraus, Tomas"]
[Result "0-1"]
[Annotator "ChessBase"]
[ECO "B11"]
[WhiteElo "2227"]
[BlackElo "2451"]
[PlyCount "126"]
[EventDate "2024.09.12"]
[EventType "team-tourn"]
[EventCountry "SVK"]
[SourceTitle "playchess.com"]
[Source "ChessBase"]
[SourceQuality "1"]
[TimeControl "5400+30"]

1. e4 {[%emt 0:00:04]} c6 {[%emt 0:00:58]} 2. Nc3 {[%emt 0:01:44]} d5 {[%emt 0:00:52]} 3. Nf3 {[%emt 0:00:04]} Bg4 4. h3 {[%emt 0:00:14]} Bxf3 {[%emt 0:01:26]} 5. Qxf3 {[%emt 0:00:27]} e6 {[%emt 0:00:27]} 6. g3 {[%emt 0:01:52]} Nd7 {[%emt 0:00:32]} 7. Bg2 {[%emt 0:00:12]} d4 {[%emt 0:00:15]} 8. Nb1 {[%emt 0:00:58]} h5 {[%emt 0:00:18]} 9. d3 {[%emt 0:00:44]} h4 {[%emt 0:00:39]} 10. Nd2 {[%emt 0:04:50]} Ne7 {[%emt 0:08:10]} 11. Qe2 {[%emt 0:05:02]} Ng6 {[%emt 0:03:30]} 12. a3 {[%emt 0:13:52]} Bd6 {[%emt 0:10:08]} 13. gxh4 {[%emt 0:06:59]} Nxh4 {[%emt 0:06:54]} 14. Kf1 {[%emt 0:08:05]} Bf4 {[%emt 0:07:13]} 15. Nf3 {[%emt 0:05:30]} Bxc1 {[%emt 0:06:20]} 16. Rxc1 {[%emt 0:00:12]} Qf6 {[%emt 0:04:56]} 17. e5 {[%emt 0:06:06]} Qf4 {[%emt 0:09:02]} 18. Re1 {[%emt 0:00:58]} Nxf3 {[%emt 0:07:25]} 19. Qxf3 {[%emt 0:00:39]} Rh4 {[%emt 0:00:55]} 20. Qe2 {[%emt 0:08:32]} g6 {[%emt 0:02:57]} 21. Bf3 {[%emt 0:00:26]} Nxe5 {[%emt 0:00:59]} 22. Qxe5 {[%emt 0:00:07]} Qxf3 {[%emt 0:00:07]} 23. Rh2 {[%emt 0:01:19]} O-O-O {[%emt 0:01:25]} 24. Qg3 {[%emt 0:00:26]} Qf6 {[%emt 0:01:48]} 25. Qe5 {[%emt 0:03:47]} Qf3 {[%emt 0:00:20]} 26. Qg3 {[%emt 0:00:10]} Qf6 {[%emt 0:00:05]} 27. Qe5 {[%emt 0:00:06]} Qe7 {[%emt 0:00:09]} 28. Re4 {[%emt 0:05:50]} Rxe4 {[%emt 0:03:46]} 29. dxe4 {[%emt 0:00:56]} d3 {[%emt 0:00:47]} 30. cxd3 {[%emt 0:00:30]} Rxd3 {[%emt 0:00:13]} 31. Qh8+ {[%emt 0:01:36]} Rd8 {[%emt 0:01:48]} 32. Qe5 {[%emt 0:00:10]} Qh4 {[%emt 0:02:52]} 33. Ke2 {[%emt 0:01:09]} Qh6 {[%emt 0:02:53]} 34. f4 {[%emt 0:00:14]} Qh4 {[%emt 0:00:51]} 35. Qg5 {[%emt 0:00:13]} Qh8 {[%emt 0:00:07]} 36. Qe5 {[%emt 0:00:13]} Qh4 {[%emt 0:00:49]} 37. Qg5 {[%emt 0:00:07]} Qh8 {[%emt 0:00:03]} 38. Qe5 {[%emt 0:00:06]} Qe8 {[%emt 0:00:04]} 39. Rh1 {[%emt 0:02:50]} Qd7 {[%emt 0:01:40]} 40. Qc3 {[%emt 0:00:06]} f5 {[%emt 0:04:13]} 41. Qe3 {[%emt 0:06:08]} fxe4 {[%emt 0:01:07]} 42. Qxe4 {[%emt 0:00:11]} Qd2+ {[%emt 0:01:25]} 43. Kf3 {[%emt 0:01:26]} Rd3+ {[%emt 0:03:31]} 44. Kg4 {[%emt 0:00:29]} Re3 {[%emt 0:01:21]} 45. Qxg6 {[%emt 0:00:10]} Qg2+ {[%emt 0:00:22]} 46. Kh5 {[%emt 0:00:11]} Rxh3+ {[%emt 0:00:22]} 47. Rxh3 {[%emt 0:00:06]} Qxh3+ {[%emt 0:00:04]} 48. Kg5 {[%emt 0:00:10]} Qg3+ {[%emt 0:00:07]} 49. Kf6 {[%emt 0:00:14]} Qxg6+ {[%emt 0:00:14]} 50. Kxg6 {[%emt 0:00:08]} Kd7 {[%emt 0:00:29]} 51. f5 {[%emt 0:00:09]} exf5 {[%emt 0:00:08]} 52. Kxf5 {[%emt 0:00:05]} Kd6 {[%emt 0:00:38]} 53. Ke4 {[%emt 0:00:09]} Kc5 {[%emt 0:00:41]} 54. Kd3 {[%emt 0:00:08]} Kd5 {[%emt 0:02:44]} 55. b3 {[%emt 0:09:32]} c5 {[%emt 0:02:48]} 56. a4 {[%emt 0:01:06]} b6 {[%emt 0:01:31]} 57. Kc3 {[%emt 0:00:13]} a6 {[%emt 0:01:10]} 58. Kd3 {[%emt 0:00:53]} b5 {[%emt 0:00:00]} 59. axb5 {[%emt 0:00:00]} axb5 {[%emt 0:00:00]} 60. Kc3 {[%emt 0:00:00]} Ke4 {[%emt 0:00:00]} 61. Kd2 {[%emt 0:00:00]} Kd4 {[%emt 0:00:00]} 62. Kc2 {[%emt 0:00:00]} Ke3 {[%emt 0:00:00]} 63. Kc3 {[%emt 0:00:00]} Ke2 {[%emt 0:00:00]} 0-1

[Event "Slovakian ECo-C Extraliga 2024-25"]
[Site "Slovakia"]
[Date "2025.02.16"]
[Round "6.5"]
[White "Jablonicky, Martin"]
[Black "Kravec, Patrik"]
[Result "1-0"]
[Annotator "ChessBase"]
[ECO "A43"]
[WhiteElo "2426"]
[BlackElo "2090"]
[PlyCount "85"]
[EventDate "2024.09.12"]
[EventType "team-tourn"]
[EventCountry "SVK"]
[SourceTitle "playchess.com"]
[Source "ChessBase"]
[SourceQuality "1"]
[TimeControl "5400+30"]

1. d4 {[%emt 0:00:02]} c5 {[%emt 0:02:43]} 2. d5 {[%emt 0:00:09]} d6 {[%emt 0:00:41]} 3. e4 {[%emt 0:00:34]} g6 {[%emt 0:01:09]} 4. c4 {[%emt 0:14:51]} b5 {[%emt 0:02:34]} 5. cxb5 {[%emt 0:00:15]} a6 {[%emt 0:00:04]} 6. bxa6 {[%emt 0:00:18]} Bxa6 {[%emt 0:06:52]} 7. Bxa6 {[%emt 0:00:06]} Rxa6 {[%emt 0:02:41]} 8. Nf3 {[%emt 0:00:14]} Bg7 {[%emt 0:00:30]} 9. O-O {[%emt 0:01:06]} Nd7 {[%emt 0:00:54]} 10. Nc3 {[%emt 0:00:30]} Ngf6 {[%emt 0:01:14]} 11. Qe2 {[%emt 0:01:30]} Ra8 {[%emt 0:14:08]} 12. b3 {[%emt 0:07:42]} Nxd5 {[%emt 0:05:23]} 13. Nxd5 {[%emt 0:17:40]} Bxa1 {[%emt 0:00:23]} 14. e5 {[%emt 0:00:04]} Bxe5 {[%emt 0:16:50]} 15. Nxe5 {[%emt 0:04:16]} dxe5 {[%emt 0:00:51]} 16. Bh6 {[%emt 0:05:10]} e6 {[%emt 0:13:49]} 17. Nc3 {[%emt 0:00:02]} Qh4 {[%emt 0:03:08]} 18. Qd2 {[%emt 0:00:30]} Rb8 {[%emt 0:12:39]} 19. Rd1 {[%emt 0:05:05]} Qd4 {[%emt 0:02:47]} 20. Qc2 {[%emt 0:01:45]} Qh4 {[%emt 0:00:34]} 21. Qd3 {[%emt 0:06:09]} Qd4 {[%emt 0:01:49]} 22. Qf3 {[%emt 0:00:48]} Qh4 {[%emt 0:04:19]} 23. Ne4 {[%emt 0:13:21]} f5 {[%emt 0:02:21]} 24. Nxc5 {[%emt 0:03:43]} Nxc5 {[%emt 0:01:53]} 25. Qc6+ {[%emt 0:00:03]} Kf7 {[%emt 0:00:11]} 26. Qxc5 {[%emt 0:01:24]} Qe7 {[%emt 0:02:04]} 27. Qxe5 {[%emt 0:00:13]} Rhg8 {[%emt 0:00:04]} 28. h4 {[%emt 0:05:49]} Rbd8 {[%emt 0:00:29]} 29. Rxd8 {[%emt 0:01:02]} Qxd8 {[%emt 0:00:53]} 30. Bg5 {[%emt 0:00:35]} Qd7 {[%emt 0:00:23]} 31. Qf6+ {[%emt 0:00:00]} Ke8 {[%emt 0:00:02]} 32. a4 {[%emt 0:00:50]} Rf8 {[%emt 0:00:39]} 33. Qe5 {[%emt 0:00:30]} Qd1+ {[%emt 0:01:12]} 34. Kh2 {[%emt 0:00:02]} Qd7 {[%emt 0:00:40]} 35. b4 {[%emt 0:01:53]} Kf7 {[%emt 0:00:21]} 36. Bh6 {[%emt 0:00:14]} Rg8 {[%emt 0:00:05]} 37. b5 {[%emt 0:00:28]} Qa7 {[%emt 0:00:29]} 38. Be3 {[%emt 0:01:44]} Qxa4 {[%emt 0:00:37]} 39. Qc7+ {[%emt 0:00:08]} Ke8 {[%emt 0:00:25]} 40. Bg5 {[%emt 0:02:14]} Qb4 {[%emt 0:01:02]} 41. Qc8+ {[%emt 0:00:30]} Kf7 {[%emt 0:00:07]} 42. Qd7+ {[%emt 0:00:05]} Kf8 {[%emt 0:00:07]} 43. Bh6+ {[%emt 0:00:15]} 1-0

[Event "Slovakian ECo-C Extraliga 2024-25"]
[Site "Slovakia"]
[Date "2025.02.16"]
[Round "6.5"]
[White "Motuz, Karol"]
[Black "Hujbert, Florian"]
[Result "1/2-1/2"]
[Annotator "ChessBase"]
[ECO "D31"]
[WhiteElo "2293"]
[BlackElo "2413"]
[PlyCount "33"]
[EventDate "2024.09.12"]
[EventType "team-tourn"]
[EventCountry "SVK"]
[SourceTitle "playchess.com"]
[Source "ChessBase"]
[SourceQuality "1"]
[TimeControl "5400+30"]

1. d4 {[%emt 0:00:30]} d5 {[%emt 0:00:13]} 2. c4 {[%emt 0:00:00]} e6 {[%emt 0:00:09]} 3. Nc3 {[%emt 0:00:04]} h6 {[%emt 0:00:39]} 4. Nf3 {[%emt 0:05:07]} Nf6 {[%emt 0:00:08]} 5. Bf4 {[%emt 0:02:02]} Bd6 {[%emt 0:00:22]} 6. Bg3 {[%emt 0:05:30]} O-O {[%emt 0:01:01]} 7. e3 {[%emt 0:00:14]} Bxg3 {[%emt 0:05:55]} 8. hxg3 {[%emt 0:00:17]} c6 {[%emt 0:00:44]} 9. Qc2 {[%emt 0:04:43]} Nbd7 {[%emt 0:03:28]} 10. Be2 {[%emt 0:04:21]} Qe7 {[%emt 0:01:25]} 11. Ne5 {[%emt 0:18:09]} Nxe5 {[%emt 0:17:41]} 12. dxe5 {[%emt 0:00:08]} Nd7 {[%emt 0:00:10]} 13. f4 {[%emt 0:02:04]} Qc5 {[%emt 0:15:30]} 14. Kf2 {[%emt 0:05:41]} Nb6 {[%emt 0:09:13]} 15. Rh4 {[%emt 0:10:05]} f5 {[%emt 0:04:15]} 16. cxd5 Nxd5 {[%emt 0:02:58]} 17. Qd2 {[%emt 0:10:11]} 1/2-1/2

[Event "Slovakian ECo-C Extraliga 2024-25"]
[Site "Slovakia"]
[Date "2025.02.16"]
[Round "6.5"]
[White "Zetocha, Claudiu Andrei"]
[Black "Zambor, Norbert"]
[Result "0-1"]
[Annotator "ChessBase"]
[ECO "E70"]
[WhiteElo "2283"]
[BlackElo "2243"]
[PlyCount "94"]
[EventDate "2024.09.12"]
[EventType "team-tourn"]
[EventCountry "SVK"]
[SourceTitle "playchess.com"]
[Source "ChessBase"]
[SourceQuality "1"]
[TimeControl "5400+30"]

1. d4 {[%emt 0:00:30]} Nf6 {[%emt 0:00:29]} 2. c4 {[%emt 0:00:10]} g6 {[%emt 0:00:19]} 3. Nc3 {[%emt 0:00:35]} Bg7 {[%emt 0:00:11]} 4. e4 d6 5. Nge2 {[%emt 0:02:25]} O-O {[%emt 0:01:12]} 6. Ng3 {[%emt 0:00:09]} Nbd7 {[%emt 0:09:47]} 7. Be2 {[%emt 0:02:55]} e5 {[%emt 0:02:44]} 8. d5 {[%emt 0:00:40]} a5 {[%emt 0:00:42]} 9. h4 {[%emt 0:01:29]} Nc5 {[%emt 0:04:20]} 10. h5 {[%emt 0:06:51]} c6 {[%emt 0:03:09]} 11. Bg5 {[%emt 0:16:05]} Qb6 {[%emt 0:12:34]} 12. Qd2 {[%emt 0:04:01]} cxd5 {[%emt 0:06:02]} 13. cxd5 {[%emt 0:18:39]} Bd7 {[%emt 0:07:56]} 14. Rb1 {[%emt 0:09:18]} Rac8 {[%emt 0:05:39]} 15. f3 {[%emt 0:02:57]} a4 {[%emt 0:02:56]} 16. Be3 {[%emt 0:01:09]} Ne8 {[%emt 0:06:11]} 17. Bf2 {[%emt 0:08:59]} Qd8 {[%emt 0:04:08]} 18. hxg6 {[%emt 0:15:00]} fxg6 {[%emt 0:01:17]} 19. Bb5 {[%emt 0:01:48]} Bxb5 {[%emt 0:09:29]} 20. Nxb5 {[%emt 0:00:05]} Qd7 {[%emt 0:00:20]} 21. Qe2 {[%emt 0:01:13]} h5 {[%emt 0:03:24]} 22. Be3 {[%emt 0:01:08]} Nc7 {[%emt 0:02:14]} 23. Na3 {[%emt 0:01:38]} N7a6 {[%emt 0:03:00]} 24. b4 {[%emt 0:02:20]} axb3 {[%emt 0:00:25]} 25. axb3 {[%emt 0:00:08]} Nb4 {[%emt 0:00:45]} 26. Qd2 {[%emt 0:01:12]} Ncd3+ {[%emt 0:01:13]} 27. Ke2 {[%emt 0:00:37]} Ra8 {[%emt 0:00:15]} 28. Ra1 {[%emt 0:00:20]} b5 {[%emt 0:00:18]} 29. Nc2 {[%emt 0:00:26]} Rxa1 {[%emt 0:02:16]} 30. Rxa1 {[%emt 0:00:02]} Nxc2 {[%emt 0:00:13]} 31. Qxc2 {[%emt 0:00:08]} Nf4+ {[%emt 0:00:05]} 32. Kf2 {[%emt 0:00:32]} h4 {[%emt 0:03:28]} 33. Ne2 {[%emt 0:00:01]} h3 {[%emt 0:03:21]} 34. g3 {[%emt 0:01:25]} Ng2 {[%emt 0:02:28]} 35. Bd2 {[%emt 0:01:16]} Qg4 {[%emt 0:00:37]} 36. Qd3 {[%emt 0:00:12]} Nh4 {[%emt 0:00:08]} 37. Nf4 {[%emt 0:01:02]} Nxf3 {[%emt 0:03:46]} 38. Qxf3 {[%emt 0:00:41]} Qxf3+ {[%emt 0:00:05]} 39. Kxf3 {[%emt 0:00:03]} exf4 {[%emt 0:00:04]} 40. Rd1 {[%emt 0:00:19]} fxg3+ {[%emt 0:00:09]} 41. Kxg3 {[%emt 0:00:14]} Be5+ {[%emt 0:00:02]} 42. Kxh3 {[%emt 0:00:39]} Rf3+ {[%emt 0:00:08]} 43. Kg2 {[%emt 0:00:00]} Rxb3 {[%emt 0:00:00]} 44. Kf2 {[%emt 0:00:00]} b4 {[%emt 0:00:00]} 45. Ke2 {[%emt 0:00:00]} Kg7 {[%emt 0:00:00]} 46. Rc1 {[%emt 0:00:00]} Rb2 {[%emt 0:00:00]} 47. Kd3 {[%emt 0:00:00]} Rxd2+ {[%emt 0:00:00]} 0-1

[Event "Slovakian ECo-C Extraliga 2024-25"]
[Site "Slovakia"]
[Date "2025.02.16"]
[Round "6.6"]
[White "Toth, Ervin"]
[Black "Vojtek, Vladimir"]
[Result "0-1"]
[Annotator "ChessBase"]
[ECO "E26"]
[WhiteElo "2393"]
[BlackElo "2217"]
[PlyCount "66"]
[EventDate "2024.09.12"]
[EventType "team-tourn"]
[EventCountry "SVK"]
[SourceTitle "playchess.com"]
[Source "ChessBase"]
[SourceQuality "1"]
[TimeControl "5400+30"]

1. d4 {[%emt 0:00:03]} Nf6 {[%emt 0:00:14]} 2. c4 {[%emt 0:00:13]} e6 {[%emt 0:00:04]} 3. Nc3 {[%emt 0:00:12]} Bb4 {[%emt 0:00:21]} 4. a3 {[%emt 0:00:07]} Bxc3+ {[%emt 0:00:04]} 5. bxc3 {[%emt 0:00:07]} c5 {[%emt 0:00:32]} 6. e3 {[%emt 0:00:41]} Nc6 {[%emt 0:00:53]} 7. Bd3 {[%emt 0:00:15]} b6 {[%emt 0:00:51]} 8. Ne2 {[%emt 0:02:03]} Ba6 {[%emt 0:07:43]} 9. Ng3 {[%emt 0:02:56]} Qc7 {[%emt 0:01:43]} 10. Qe2 {[%emt 0:02:47]} Na5 {[%emt 0:03:43]} 11. d5 {[%emt 0:08:06]} h5 {[%emt 0:07:54]} 12. e4 {[%emt 0:02:35]} h4 {[%emt 0:08:05]} 13. d6 {[%emt 0:13:17]} Qc6 {[%emt 0:35:57]} 14. Nf1 {[%emt 0:00:24]} O-O-O {[%emt 0:06:26]} 15. Bg5 {[%emt 0:02:30]} Rdg8 {[%emt 0:00:51]} 16. Bxf6 {[%emt 0:21:17]} gxf6 {[%emt 0:00:08]} 17. Ne3 {[%emt 0:00:06]} Qxd6 {[%emt 0:01:33]} 18. O-O {[%emt 0:00:16]} Qf4 {[%emt 0:03:39]} 19. g3 {[%emt 0:08:09]} Bb7 {[%emt 0:02:23]} 20. Ng2 {[%emt 0:03:16]} Qh6 {[%emt 0:02:47]} 21. g4 {[%emt 0:01:13]} h3 {[%emt 0:01:00]} 22. Ne3 {[%emt 0:00:06]} Qf4 {[%emt 0:03:13]} 23. f3 {[%emt 0:00:05]} Nc6 {[%emt 0:00:43]} 24. a4 {[%emt 0:00:03]} Ne5 {[%emt 0:00:40]} 25. a5 {[%emt 0:05:17]} f5 {[%emt 0:01:09]} 26. axb6 {[%emt 0:00:06]} axb6 {[%emt 0:00:11]} 27. Rab1 {[%emt 0:00:07]} Nxd3 {[%emt 0:04:42]} 28. Qxd3 {[%emt 0:01:08]} fxe4 {[%emt 0:01:57]} 29. fxe4 {[%emt 0:00:08]} Rxg4+ {[%emt 0:01:16]} 30. Nxg4 {[%emt 0:00:34]} Qxg4+ {[%emt 0:00:06]} 31. Kf2 {[%emt 0:00:55]} Bxe4 {[%emt 0:00:48]} 32. Qd6 {[%emt 0:01:12]} Bxb1 {[%emt 0:00:37]} 33. Rxb1 {[%emt 0:00:33]} Qf5+ {[%emt 0:00:15]} 0-1

[Event "Slovakian ECo-C Extraliga 2024-25"]
[Site "Slovakia"]
[Date "2025.02.16"]
[Round "6.6"]
[White "Kantorik, Marian"]
[Black "Havlicek, Libor"]
[Result "1-0"]
[Annotator "ChessBase"]
[ECO "A59"]
[WhiteElo "2171"]
[BlackElo "2281"]
[PlyCount "77"]
[EventDate "2024.09.12"]
[EventType "team-tourn"]
[EventCountry "SVK"]
[SourceTitle "playchess.com"]
[Source "ChessBase"]
[SourceQuality "1"]
[TimeControl "5400+30"]

1. d4 {[%emt 0:00:07]} Nf6 {[%emt 0:00:06]} 2. c4 {[%emt 0:00:09]} c5 {[%emt 0:00:06]} 3. d5 {[%emt 0:01:01]} b5 {[%emt 0:00:07]} 4. cxb5 {[%emt 0:00:32]} a6 {[%emt 0:00:07]} 5. bxa6 {[%emt 0:00:19]} g6 {[%emt 0:00:05]} 6. Nc3 {[%emt 0:00:11]} Bxa6 {[%emt 0:00:05]} 7. e4 {[%emt 0:00:08]} Bxf1 {[%emt 0:00:06]} 8. Kxf1 {[%emt 0:00:07]} d6 {[%emt 0:00:05]} 9. g3 {[%emt 0:00:10]} Bg7 {[%emt 0:00:10]} 10. Kg2 {[%emt 0:00:06]} O-O {[%emt 0:01:52]} 11. Nf3 {[%emt 0:00:05]} Nbd7 {[%emt 0:02:14]} 12. Qc2 {[%emt 0:00:11]} Qa5 {[%emt 0:01:22]} 13. Bd2 {[%emt 0:02:35]} Rfb8 {[%emt 0:00:14]} 14. Rhe1 {[%emt 0:06:00]} Nb6 {[%emt 0:10:21]} 15. b3 {[%emt 0:13:11]} Qa6 {[%emt 0:01:28]} 16. a4 {[%emt 0:00:28]} Nfd7 {[%emt 0:01:28]} 17. a5 {[%emt 0:09:52]} Nc8 {[%emt 0:00:16]} 18. Ra4 {[%emt 0:00:54]} Na7 {[%emt 0:05:12]} 19. Rb1 {[%emt 0:02:41]} Rb7 {[%emt 0:03:45]} 20. h4 {[%emt 0:04:19]} Rab8 {[%emt 0:00:10]} 21. h5 {[%emt 0:01:24]} c4 {[%emt 0:13:09]} 22. b4 {[%emt 0:10:44]} gxh5 {[%emt 0:11:51]} 23. b5 {[%emt 0:11:47]} Nxb5 {[%emt 0:00:33]} 24. Nxb5 {[%emt 0:00:10]} Rxb5 {[%emt 0:00:31]} 25. Qxc4 {[%emt 0:00:15]} Nc5 {[%emt 0:00:45]} 26. Rxb5 {[%emt 0:01:42]} Rxb5 {[%emt 0:02:16]} 27. Rb4 {[%emt 0:00:46]} Rxb4 {[%emt 0:00:20]} 28. Qxb4 {[%emt 0:00:05]} h6 {[%emt 0:01:36]} 29. Be3 {[%emt 0:04:52]} Qc8 {[%emt 0:01:00]} 30. Bxc5 {[%emt 0:01:16]} dxc5 {[%emt 0:00:02]} 31. Qc4 {[%emt 0:00:10]} h4 {[%emt 0:00:11]} 32. Nxh4 {[%emt 0:00:46]} Be5 {[%emt 0:01:24]} 33. a6 {[%emt 0:01:20]} Qc7 {[%emt 0:00:17]} 34. Nf5 {[%emt 0:01:08]} Kf8 {[%emt 0:00:12]} 35. Qa4 {[%emt 0:01:12]} Qa7 {[%emt 0:01:45]} 36. Qc6 {[%emt 0:00:32]} f6 {[%emt 0:01:01]} 37. Qc8+ {[%emt 0:01:29]} Kf7 {[%emt 0:00:09]} 38. Qe6+ {[%emt 0:01:16]} Kf8 {[%emt 0:00:32]} 39. Nxe7 {[%emt 0:01:12]} 1-0